bitfinex/quotes_SOLUSD_20260222
["timestamp","ask_amount","ask_price","bid_price","bid_amount"]
[1771773478526,120.50872516,83.199,83.129,5.64518502]
[1771773478527,13.60063123,83.179,83.129,5.64518502]
[1771773478722,1.57822842,83.178,83.129,5.64518502]
[1771773478915,12.02240281,83.179,83.129,5.64518502]
[1771773478916,1.57822842,83.169,83.129,5.64518502]
[1771773479303,1.57822842,83.167,83.13,12.02935161]
[1771773479627,1.57822842,83.159,83.131,0.28432314]
[1771773480306,60.4113735,83.199,83.136,1.44158224]
[1771773480307,30.05173121,83.19,83.136,1.44158224]
[1771773480507,8.34256605,83.18,83.142,1.44158224]
[1771773481029,8.34256605,83.17,83.142,1.44158224]
[1771773481207,0.28432314,83.188,83.125,12.030059]
[1771773481408,8.34256605,83.15,83.125,12.030059]
[1771773481707,8.34256605,83.15,83.122,13.47207586]
[1771773482011,12.02660284,83.149,83.123,1.44158224]
[1771773482721,1.42176077,83.148,83.117,12.03115905]
[1771773483314,1.42176077,83.148,83.116,12.03126514]
[1771773483916,1.42176077,83.139,83.105,1.44158224]
[1771773484211,1.42176077,83.129,83.108,12.03253558]
[1771773484529,1.42176077,83.129,83.105,12.03290927]
[1771773484708,1.42176077,83.129,83.107,12.03268076]
[1771773484904,1.42176077,83.139,83.108,1.44158224]
[1771773485107,1.42176077,83.139,83.107,12.03268076]
[1771773485714,1.42176077,83.129,83.1,12.03362498]
[1771773485915,1.42176077,83.129,83.093,5.13541626]
[1771773486126,1.42176077,83.129,83.107,12.03268076]
[1771773486432,20.37049134,83.14,83.108,1.44158224]
[1771773486608,8.34256605,83.14,83.11,1.44158224]
[1771773487324,50.44030695,83.14,83.11,1.44158224]
[1771773487532,8.34256605,83.13,83.1,12.03356485]
[1771773487734,8.34256605,83.12,83.086,1.44158224]
[1771773488112,12.03094358,83.119,83.089,12.03521329]
[1771773488309,12.03094358,83.119,83.09,1.54376735]
[1771773488529,1.55139512,83.118,83.09,1.54376735]
[1771773489438,30.06937388,83.142,83.09,1.54376735]
[1771773489439,1.55139512,83.129,83.09,1.54376735]
[1771773490032,1.55139512,83.129,83.091,1.54376735]
[1771773490327,1.55139512,83.129,83.09,0.5]
[1771773490328,13.57998279,83.136,83.093,1.54376735]
[1771773490513,1.55139512,83.136,83.095,1.54376735]
[1771773490713,1.55139512,83.141,83.095,1.54376735]
[1771773490933,8.34256605,83.13,83.095,1.54376735]
[1771773491135,9.89396117,83.13,83.095,1.54376735]
[1771773492223,1.55139512,83.129,83.095,1.54376735]
[1771773492535,1.55139512,83.127,83.097,1.54376735]
[1771773493622,8.34256605,83.11,83.096,54.14]
[1771773493934,1.55139512,83.109,83.096,54.14]
[1771773494317,1.55139512,83.109,83.055,12.04021431]
[1771773494513,1.4152822,83.099,83.055,12.04021431]
[1771773495413,1.4152822,83.099,83.056,5.36086188]
[1771773495612,1.4152822,83.109,83.057,0.14216157]
[1771773495809,1.4152822,83.109,83.06,6.14518502]
[1771773496025,1.4152822,83.119,83.06,6.14518502]
[1771773496226,1.4152822,83.109,83.065,1.50023232]
[1771773496429,9.75784825,83.1,83.066,42.13516962]
[1771773496633,1.4152822,83.098,83.067,1.50023232]
[1771773496846,1.4152822,83.098,83.056,1.50023232]
[1771773497136,1.4152822,83.089,83.056,1.50023232]
[1771773497533,1.4152822,83.079,83.055,12.04021431]
[1771773497717,1.4152822,83.079,83.047,12.0413032]
[1771773497921,1.4152822,83.079,83.048,1.50023232]
[1771773498136,1.4152822,83.079,83.05,1.50023232]
[1771773498324,8.34256605,83.09,83.05,1.50023232]
[1771773499133,9.75784825,83.09,83.051,42.14277973]
[1771773499433,9.75784825,83.09,83.052,1.50023232]
[1771773499640,1.4152822,83.089,83.054,1.50023232]
[1771773500018,1.4152822,83.079,83.054,1.50023232]
[1771773500437,1.4152822,83.079,83.051,12.04079421]
[1771773500634,8.34256605,83.1,83.052,1.50023232]
[1771773500843,1.4152822,83.099,83.052,1.50023232]
[1771773501216,1.4152822,83.099,83.054,1.50023232]
[1771773501422,1.4152822,83.097,83.061,1.50023232]
[1771773501828,1.4152822,83.089,83.062,54.16]
[1771773502029,1.4152822,83.079,83.062,54.16]
[1771773502228,42.11894389,83.098,83.047,12.04129326]
[1771773502229,1.4152822,83.069,83.047,12.04129326]
[1771773503540,1.4152822,83.069,83.043,1.50023232]
[1771773505541,1.4152822,83.079,83.045,1.50023232]
[1771773506740,8.34256605,83.09,83.045,1.50023232]
[1771773506938,1.4152822,83.089,83.045,1.50023232]
[1771773507636,1.4152822,83.089,83.047,1.50023232]
[1771773507838,1.4152822,83.089,83.051,1.50023232]
[1771773508042,1.4152822,83.089,83.052,54.16]
[1771773508239,1.4152822,83.089,83.053,1.50023232]
[1771773508445,1.4152822,83.069,83.052,54.16]
[1771773511047,1.4152822,83.069,83.053,12.04050425]
[1771773511551,1.4152822,83.099,83.054,1.50023232]
[1771773511749,1.4152822,83.089,83.056,1.50023232]
[1771773512856,3.69383402,83.117,83.06,0.5]
[1771773512857,3.11874458,83.07,83.06,0.5]
[1771773513156,3.11874458,83.07,83.053,12.04050425]
[1771773513449,1.4152822,83.073,83.053,12.04050425]
[1771773514163,3.11874458,83.08,83.054,1.50023232]
[1771773514859,3.11874458,83.07,83.053,12.04050425]
[1771773515356,3.11928082,83.06,83.053,12.04050425]
[1771773516235,3.11928082,83.06,83.052,54.16]
[1771773516446,3.11928082,83.06,83.047,12.04129061]
[1771773516656,3.11928082,83.06,83.006,1.56202551]
[1771773516657,1.4152822,83.059,83.006,1.56202551]
[1771773516851,3.11928082,83.04,83.013,1.56202551]
[1771773517046,1.4152822,83.059,83.013,1.56202551]
[1771773517047,3.11928082,83.03,83.013,1.56202551]
[1771773517248,8.36334195,83.02,82.973,3.69383402]
[1771773517557,8.36334195,83.02,83.002,1.56202551]
[1771773517955,8.36334195,83.04,83.002,1.56202551]
[1771773518254,12.03977943,83.058,83.004,1.56202551]
[1771773518554,8.36334195,83.05,83.006,1.56202551]
[1771773519053,30.09525862,83.07,83.016,1.56202551]
[1771773519054,8.36334195,83.07,83.016,1.56202551]
[1771773519548,8.36334195,83.07,83.018,1.56202551]
[1771773520748,8.36334195,83.08,83.021,1.84634865]
[1771773521752,8.36334195,83.08,83.025,1.56202551]
[1771773522555,12.03673611,83.079,83.025,1.56202551]
[1771773522857,12.03673611,83.079,83.032,1.56202551]
[1771773523558,12.03673611,83.079,83.034,1.56202551]
[1771773524161,8.36334195,83.08,83.034,1.56202551]
[1771773524463,12.03604013,83.084,83.034,1.56202551]
[1771773524662,0.02018387,83.083,83.034,1.56202551]
[1771773526769,0.02018387,83.083,83.036,1.56202551]
[1771773527074,0.02563945,83.088,83.036,1.56202551]
[1771773527565,12.03470057,83.094,83.036,1.56202551]
[1771773527771,0.02832033,83.102,83.046,1.56202551]
[1771773528067,12.03293629,83.106,83.046,1.56202551]
[1771773528252,12.06071152,83.109,83.051,1.56202551]
[1771773528446,0.02832033,83.089,83.051,1.56202551]
[1771773528652,0.03097042,83.069,83.052,54.18]
[1771773528854,0.03097042,83.069,83.037,12.04282428]
[1771773529659,0.03097042,83.069,83.035,30.10778587]
[1771773529861,8.36334195,83.05,83.03,0.46643815]
[1771773530968,12.04108417,83.049,83.011,12.04659623]
[1771773531169,12.04108417,83.049,83.011,13.62540267]
[1771773532959,12.03963447,83.059,83.012,1.57880644]
[1771773533162,12.03894045,83.064,83.014,1.57880644]
[1771773534570,12.03818512,83.069,83.016,1.57880644]
[1771773537779,12.03818512,83.069,83.021,42.15800821]
[1771773537963,12.03818512,83.069,83.022,1.57880644]
[1771773538278,12.03818512,83.069,83.024,1.57880644]
[1771773538580,0.02216454,83.068,83.024,1.57880644]
[1771773539876,0.0244675,83.075,83.026,1.57880644]
[1771773543064,0.03121887,83.083,83.028,1.57880644]
[1771773543679,0.03341783,83.093,83.031,1.86312958]
[1771773543871,23.94600667,83.144,83.04,1.86312958]
[1771773543872,0.03341783,83.095,83.04,1.86312958]
[1771773544683,0.03341783,83.102,83.04,1.86312958]
[1771773544880,0.03559153,83.114,83.052,1.57880644]
[1771773545067,0.03559153,83.114,83.065,0.28432314]
[1771773545265,0.03559153,83.114,83.066,1.57880644]
[1771773545986,12.03131249,83.117,83.066,1.57880644]
[1771773546187,12.03056591,83.122,83.066,1.57880644]
[1771773546386,12.06830617,83.122,83.066,1.57880644]
[1771773546566,0.03774026,83.121,83.108,0.2000932]
[1771773548278,0.03774026,83.121,83.109,54.18]
[1771773549586,12.02848344,83.136,83.109,54.18]
[1771773549990,8.36334195,83.13,83.109,54.18]
[1771773550483,23.94600667,83.129,83.109,54.18]
[1771773551389,12.02964103,83.128,83.109,54.18]
[1771773553977,0.02010545,83.127,83.109,54.18]
[1771773557197,0.02562697,83.144,83.111,1.59766484]
[1771773557578,0.02562697,83.154,83.111,1.59766484]
[1771773557895,0.02742537,83.139,83.111,1.59766484]
[1771773558088,0.02742537,83.129,83.109,54.18]
[1771773558291,0.02742537,83.128,83.109,54.18]
[1771773558594,0.02742537,83.128,83.108,0.17271692]
[1771773559595,12.02978574,83.127,83.108,0.17271692]
[1771773562487,8.52553178,83.128,83.108,0.17271692]
[1771773563799,8.52553178,83.128,83.11,1.61135298]
[1771773564996,1.60732625,83.127,83.091,30.08745223]
[1771773565198,1.60732625,83.125,83.091,30.08745223]
[1771773565790,1.60732625,83.125,83.071,0.28432314]
[1771773566103,10.13285803,83.125,83.071,0.28432314]
[1771773566796,8.52553178,83.125,83.074,9.33901904]
[1771773566998,8.52553178,83.125,83.08,1.7435862]
[1771773567181,8.52553178,83.125,83.082,1.7435862]
[1771773567799,1.60732625,83.138,83.086,1.7435862]
[1771773568106,1.60732625,83.138,83.088,1.45926306]
[1771773568599,3.11528913,83.15,83.088,1.45926306]
[1771773568600,1.60732625,83.148,83.096,1.45926306]
[1771773568819,11.2,83.147,83.096,1.45926306]
[1771773569184,1.60732625,83.157,83.1,1.45926306]
[1771773569503,1.60732625,83.157,83.106,1.45926306]
[1771773569887,1.60732625,83.155,83.108,1.45926306]
[1771773571812,1.60732625,83.155,83.093,3.69383402]
[1771773571813,1.60732625,83.153,83.11,1.45926306]
[1771773572307,1.60732625,83.151,83.11,1.45926306]
[1771773572906,1.60732625,83.149,83.11,1.45926306]
[1771773574414,1.60732625,83.147,83.112,1.45926306]
[1771773574612,12.02674748,83.148,83.112,1.45926306]
[1771773574794,1.60732625,83.159,83.112,1.45926306]
[1771773576694,1.60732625,83.159,83.114,1.45926306]
[1771773578708,1.54092584,83.157,83.116,1.57756117]
[1771773581512,1.54092584,83.155,83.118,1.57756117]
[1771773582294,1.54092584,83.129,83.08,1.57756117]
[1771773582496,1.54092584,83.119,83.08,1.57756117]
[1771773583603,12.03108833,83.118,83.082,1.57756117]
[1771773584204,12.03108833,83.118,83.091,1.57756117]
[1771773584715,13.57198666,83.119,83.091,1.57756117]
[1771773584916,1.54092584,83.119,83.091,1.57756117]
[1771773585304,1.54092584,83.129,83.091,1.57756117]
[1771773586221,1.54092584,83.127,83.093,1.57756117]
[1771773587522,1.54092584,83.127,83.095,1.57756117]
[1771773587925,12.0296564,83.128,83.095,1.57756117]
[1771773588108,12.0296564,83.128,83.094,12.03456326]
[1771773588109,12.0296564,83.128,83.097,1.57756117]
[1771773588419,1.54092584,83.109,83.096,54.14]
[1771773588619,1.54092584,83.109,83.09,0.5]
[1771773589508,12.03253597,83.108,83.09,0.5]
[1771773591518,12.03110814,83.118,83.092,1.57756117]
[1771773591725,12.03110814,83.118,83.093,12.03470809]
[1771773591918,12.03110814,83.118,83.094,1.57756117]
[1771773596210,41.27446437,83.127,83.096,1.57756117]
[1771773596211,12.0304465,83.123,83.096,1.57756117]
[1771773596930,3.11184351,83.12,83.096,1.57756117]
[1771773598013,3.11184351,83.12,83.097,54.16]
[1771773598220,12.03094358,83.119,83.098,1.57756117]
[1771773598630,11.2,83.118,83.098,1.57756117]
[1771773599233,12.74092584,83.118,83.098,1.57756117]
[1771773599525,1.54092584,83.117,83.098,1.57756117]
[1771773599734,11.2,83.118,83.098,1.57756117]
[1771773600332,33.1853653,83.13,83.099,1.57756117]
[1771773600333,12.02961425,83.129,83.099,1.57756117]
[1771773600630,11.2,83.128,83.099,1.57756117]
[1771773601013,23.22964103,83.128,83.099,1.57756117]
[1771773601734,11.2,83.128,83.099,1.57756117]
[1771773602128,3.11184351,83.13,83.099,1.57756117]
[1771773602337,1.54092584,83.138,83.099,1.57756117]
[1771773603621,1.54092584,83.137,83.101,1.57756117]
[1771773605732,1.54092584,83.135,83.103,1.57756117]
[1771773606121,1.54092584,83.135,83.105,1.57756117]
[1771773606320,3.11184351,83.13,83.105,1.57756117]
[1771773606741,1.54092584,83.144,83.107,1.57756117]
[1771773606918,1.54092584,83.158,83.107,1.57756117]
[1771773607119,12.02515662,83.159,83.107,1.57756117]
[1771773608040,13.56608246,83.159,83.107,1.57756117]
[1771773608250,3.11184351,83.15,83.107,1.57756117]
[1771773608927,1.56682128,83.153,83.108,42.11387591]
[1771773609235,1.56682128,83.153,83.109,1.56990764]
[1771773611824,12.02616894,83.152,83.111,1.56990764]
[1771773612937,12.02616894,83.152,83.113,1.56990764]
[1771773614333,1.56682128,83.153,83.113,1.56990764]
[1771773615640,12.02616894,83.152,83.115,1.54297786]
[1771773615845,1.5402721,83.151,83.115,1.54297786]
[1771773616846,1.5402721,83.151,83.117,1.54297786]
[1771773618023,1.5402721,83.151,83.119,1.54297786]
[1771773619129,12.02616894,83.152,83.119,1.54297786]
[1771773620656,1.5402721,83.155,83.121,1.54297786]
[1771773622255,1.5402721,83.153,83.121,1.54297786]
[1771773623147,1.5402721,83.153,83.122,12.03050937]
[1771773623452,1.5402721,83.153,83.123,1.54297786]
[1771773625253,1.5402721,83.153,83.125,1.54297786]
[1771773625433,11.2,83.152,83.125,1.54297786]
[1771773626232,1.5402721,83.151,83.125,1.54297786]
[1771773627449,1.5402721,83.151,83.127,1.54297786]
[1771773628856,1.5402721,83.151,83.128,12.02964103]
[1771773629036,11.2,83.152,83.129,1.54297786]
[1771773629959,11.2,83.152,83.13,12.02935161]
[1771773630159,11.2,83.152,83.131,1.54297786]
[1771773630855,11.2,83.155,83.131,1.54297786]
[1771773631443,12.7402721,83.155,83.131,1.54297786]
[1771773631639,9.4159301,83.155,83.132,1.54297786]
[1771773632162,9.4159301,83.155,83.134,1.54297786]
[1771773633275,1.7402721,83.16,83.134,1.54297786]
[1771773634169,1.7402721,83.16,83.136,1.54297786]
[1771773636546,1.5402721,83.158,83.136,1.54297786]
[1771773636744,8.0159301,83.157,83.136,1.54297786]
[1771773637355,8.0159301,83.157,83.138,1.54297786]
[1771773637867,9.5562022,83.157,83.138,1.54297786]
[1771773638572,12.02559045,83.156,83.14,1.68212576]
[1771773638766,8.0159301,83.156,83.14,1.68212576]
[1771773640558,8.0159301,83.156,83.141,12.02776007]
[1771773640958,8.0159301,83.156,83.141,13.70988583]
[1771773642670,8.0159301,83.156,83.139,54.14]
[1771773643180,9.58914039,83.156,83.139,54.14]
[1771773643470,21.61477703,83.156,83.139,54.14]
[1771773644067,8.0159301,83.156,83.139,54.14]
[1771773644276,8.0159301,83.156,83.14,1.68212576]
[1771773646570,0.2,83.16,83.143,1.68212576]
[1771773647273,0.2,83.16,83.143,12.02747074]
[1771773647476,0.2,83.16,83.144,1.68212576]
[1771773647866,1.57321029,83.159,83.143,12.02747074]
[1771773651074,1.57321029,83.159,83.143,13.7095965]
[1771773651279,1.57321029,83.159,83.144,54.12]
[1771773651479,4.97321029,83.159,83.144,54.12]
[1771773654279,4.97321029,83.159,83.145,1.68212576]
[1771773656489,3.4,83.159,83.145,1.68212576]
[1771773656684,3.4,83.159,83.146,1.68212576]
[1771773657386,3.6,83.16,83.146,1.68212576]
[1771773657576,12.02387309,83.168,83.147,1.68212576]
[1771773658188,1.57321029,83.167,83.147,1.68212576]
[1771773658387,1.57321029,83.173,83.147,1.68212576]
[1771773658887,1.57321029,83.173,83.149,1.68212576]
[1771773659882,1.57321029,83.171,83.149,1.68212576]
[1771773661095,1.57321029,83.171,83.15,2.18212576]
[1771773661294,1.57321029,83.171,83.15,14.20858396]
[1771773661991,1.57321029,83.171,83.151,1.68212576]
[1771773662595,12.02355674,83.171,83.144,54.12]
[1771773662798,1.57321029,83.159,83.105,5.36086188]
[1771773662995,1.57321029,83.159,83.106,1.68212576]
[1771773663195,1.57321029,83.149,83.106,1.68212576]
[1771773664303,1.57321029,83.147,83.108,1.68212576]
[1771773664484,3.11138666,83.14,83.108,1.68212576]
[1771773664695,1.57321029,83.129,83.098,1.68212576]
[1771773665778,1.57321029,83.109,83.081,12.03644563]
[1771773665989,1.57321029,83.143,83.082,1.68212576]
[1771773666303,1.57321029,83.139,83.084,1.68212576]
[1771773666599,1.57321029,83.137,83.086,1.68212576]
[1771773668203,1.57321029,83.137,83.088,1.62465209]
[1771773668498,1.59747174,83.135,83.09,1.62465209]
[1771773668801,1.59747174,83.129,83.09,1.62465209]
[1771773670191,1.59747174,83.127,83.092,1.62465209]
[1771773670791,1.59747174,83.133,83.094,1.62465209]
[1771773670989,1.59747174,83.14,83.096,1.90897523]
[1771773671831,3.11138666,83.13,83.096,1.62465209]
[1771773671994,1.59747174,83.129,83.096,1.62465209]
[1771773672293,1.59747174,83.127,83.096,1.62465209]
[1771773673099,1.59747174,83.127,83.097,12.03412878]
[1771773673494,1.59747174,83.127,83.098,1.62465209]
[1771773675702,1.59548685,83.125,83.1,1.65532402]
[1771773679993,1.59548685,83.123,83.1,1.65532402]
[1771773680809,0.68302572,83.122,83.1,1.65532402]
[1771773681186,1.59548685,83.121,83.1,1.65532402]
[1771773686584,0.68302572,83.12,83.102,1.65532402]
[1771773687989,1.59548685,83.135,83.104,1.65532402]
[1771773688292,1.59548685,83.135,83.106,1.65532402]
[1771773688502,1.59548685,83.134,83.106,1.65532402]
[1771773691494,1.59548685,83.134,83.108,1.65532402]
[1771773692914,1.59548685,83.142,83.11,1.65532402]
[1771773693215,1.6,83.141,83.11,1.65532402]
[1771773693909,1.59548685,83.14,83.11,1.65532402]
[1771773694897,1.59548685,83.14,83.111,12.03210164]
[1771773695098,1.59548685,83.14,83.112,1.65532402]
[1771773695912,1.59548685,83.138,83.112,1.65532402]
[1771773697110,1.6,83.141,83.112,1.65532402]
[1771773697311,1.59548685,83.143,83.114,1.65532402]
[1771773697498,1.59548685,83.152,83.114,1.65532402]
[1771773697895,1.59548685,83.152,83.116,1.65532402]
[1771773699409,1.59548685,83.152,83.118,1.64541012]
[1771773700412,1.59548685,83.152,83.12,1.64541012]
[1771773701111,1.6,83.151,83.12,1.64541012]
[1771773701291,1.57053786,83.15,83.12,1.64541012]
[1771773701497,1.57053786,83.15,83.122,1.64541012]
[1771773702004,1.6,83.151,83.122,1.64541012]
[1771773702817,1.57053786,83.15,83.122,1.64541012]
[1771773703815,1.6,83.151,83.124,1.64541012]
[1771773704720,1.57053786,83.161,83.124,1.64541012]
[1771773705129,1.57053786,83.161,83.126,1.64541012]
[1771773705296,1.57053786,83.161,83.125,42.10526314]
[1771773705297,1.57053786,83.173,83.134,1.64541012]
[1771773707020,1.57053786,83.173,83.136,1.64541012]
[1771773707516,1.57053786,83.173,83.138,1.64541012]
[1771773709342,1.57053786,83.173,83.14,1.64541012]
[1771773711501,1.57053786,83.173,83.141,12.02776007]
[1771773711705,1.57053786,83.171,83.142,1.64541012]
[1771773712613,1.57053786,83.171,83.144,1.64541012]
[1771773713119,1.57053786,83.184,83.144,1.64541012]
[1771773717022,1.57053786,83.184,83.146,1.92973326]
[1771773717320,1.57053786,83.194,83.146,1.92973326]
[1771773720234,1.57053786,83.194,83.148,1.92973326]
[1771773720615,1.57053786,83.192,83.148,1.92973326]
[1771773720815,1.57053786,83.192,83.148,1.64541012]
[1771773721622,1.57053786,83.19,83.148,1.64541012]
[1771773721836,1.57053786,83.187,83.15,1.64541012]
[1771773722023,1.57053786,83.169,83.125,1.64541012]
[1771773726334,1.57053786,83.167,83.127,1.64541012]
[1771773728128,1.57053786,83.167,83.129,1.65321152]
[1771773728917,1.57053786,83.167,83.128,54.12]
[1771773728918,1.6845913,83.165,83.131,1.65321152]
[1771773730532,1.6845913,83.163,83.133,1.65321152]
[1771773731222,1.6845913,83.163,83.135,1.65321152]
[1771773731820,1.6845913,83.173,83.135,1.65321152]
[1771773732039,13.62237528,83.179,83.143,1.65321152]
[1771773732040,1.6845913,83.179,83.143,1.65321152]
[1771773732235,1.6845913,83.189,83.143,1.65321152]
[1771773732538,1.6845913,83.195,83.162,0.28432314]
[1771773732736,0.2,83.2,83.163,1.65321152]
[1771773732917,1.6845913,83.212,83.174,1.65321152]
[1771773733318,1.6845913,83.212,83.176,1.65321152]
[1771773733821,0.2,83.22,83.176,1.65321152]
[1771773733822,3.11265073,83.21,83.176,1.65321152]
[1771773734128,1.6845913,83.199,83.15,0.28432314]
[1771773734636,1.6845913,83.199,83.147,3.69383402]
[1771773734820,1.61063773,83.189,83.131,3.69383402]
[1771773735027,1.61063773,83.189,83.11,11.7729165]
[1771773735028,1.61063773,83.189,83.136,5.36086188]
[1771773735225,1.61063773,83.187,83.143,3.69383402]
[1771773736250,1.61063773,83.187,83.144,1.54783265]
[1771773737040,1.61063773,83.187,83.146,1.54821867]
[1771773737715,1.61063773,83.185,83.147,13.57549238]
[1771773738737,1.61063773,83.185,83.148,1.54897745]
[1771773739232,1.61063773,83.185,83.147,12.02689213]
[1771773739743,1.61063773,83.183,83.147,12.02689213]
[1771773739925,1.61063773,83.183,83.147,13.57568912]
[1771773741641,1.61063773,83.183,83.148,1.54844227]
[1771773742236,1.6,83.209,83.147,42.09412245]
[1771773742237,1.61063773,83.201,83.153,1.54844227]
[1771773744126,1.61063773,83.201,83.163,1.54809564]
[1771773745427,0.2,83.22,83.155,0.28432314]
[1771773745428,1.61063773,83.199,83.155,1.54792531]
[1771773745626,1.61063773,83.199,83.157,1.54775693]
[1771773745941,1.61063773,83.179,83.156,54.12]
[1771773746144,1.61063773,83.179,83.158,1.54775693]
[1771773746353,1.61063773,83.212,83.158,1.54775693]
[1771773746531,1.61063773,83.199,83.158,1.54775693]
[1771773748937,1.61063773,83.197,83.16,1.54726332]
[1771773749342,1.61063773,83.197,83.159,42.08804818]
[1771773749343,1.61063773,83.197,83.162,1.54726332]
[1771773749845,1.6,83.196,83.159,12.02515662]
[1771773750049,1.61063773,83.195,83.159,12.02515662]
[1771773750357,1.61063773,83.189,83.159,12.02515662]
[1771773751158,1.61063773,83.187,83.16,1.54694362]
[1771773751346,1.6,83.194,83.16,1.54694362]
[1771773751541,1.61063773,83.193,83.164,1.54694362]
[1771773752358,1.61063773,83.193,83.159,12.02515662]
[1771773752740,1.61063773,83.193,83.16,1.54663122]
[1771773753342,1.61063773,83.193,83.164,1.54663122]
[1771773753552,1.61063773,83.218,83.174,1.54663122]
[1771773754049,1.61063773,83.218,83.165,1.54647771]
[1771773754348,1.61063773,83.209,83.165,1.54647771]
[1771773755841,1.61063773,83.207,83.167,1.54617596]
[1771773756461,1.61063773,83.199,83.166,12.02414448]
[1771773757965,1.61063773,83.189,83.158,1.54588109]
[1771773758140,1.61063773,83.189,83.157,12.02544584]
[1771773761746,1.61995089,83.187,83.157,12.02544584]
[1771773762668,1.61995089,83.185,83.157,12.02544584]
[1771773763868,1.61995089,83.183,83.156,54.12]
[1771773764260,1.61995089,83.181,83.156,54.12]
[1771773764461,1.61995089,83.179,83.156,54.12]
[1771773765167,1.61995089,83.177,83.156,54.12]
[1771773766449,1.61995089,83.177,83.158,1.54463536]
[1771773767067,1.61995089,83.177,83.16,1.54450478]
[1771773767567,12.02166928,83.184,83.161,54.12]
[1771773767770,12.02166928,83.184,83.162,1.72139287]
[1771773768570,12.3185085,83.205,83.163,1.72139287]
[1771773769570,12.3185085,83.205,83.165,1.72139287]
[1771773769571,1.61995089,83.198,83.165,1.72139287]
[1771773771571,3.110297,83.2,83.167,1.72139287]
[1771773771572,1.61995089,83.196,83.167,1.72139287]
[1771773774357,1.61995089,83.193,83.169,1.72139287]
[1771773775571,1.61995089,83.209,83.169,1.72139287]
[1771773776475,1.61995089,83.209,83.17,12.02356618]
[1771773776773,1.61995089,83.209,83.171,1.72139287]
[1771773777174,1.61995089,83.209,83.173,1.72139287]
[1771773777552,1.61995089,83.199,83.172,54.12]
[1771773778178,1.61995089,83.199,83.172,55.84139287]
[1771773778476,1.61995089,83.199,83.173,1.72139287]
[1771773778961,1.61995089,83.199,83.174,1.72139287]
[1771773779169,1.61995089,83.207,83.174,1.72139287]
[1771773779874,3.110297,83.21,83.172,54.12]
[1771773779875,1.61995089,83.205,83.176,1.72139287]
[1771773780078,1.61995089,83.199,83.173,1.72139287]
[1771773781684,1.61995089,83.206,83.173,1.72139287]
[1771773781982,1.61995089,83.206,83.175,1.72139287]
[1771773782285,1.61995089,83.204,83.175,1.72139287]
[1771773784386,12.01879739,83.203,83.175,1.72139287]
[1771773784680,3.110297,83.2,83.172,54.12]
[1771773784873,1.61995089,83.199,83.172,54.12]
[1771773785082,1.61995089,83.189,83.146,1.72139287]
[1771773786184,1.61995089,83.197,83.146,1.72139287]
[1771773786359,13.63974216,83.197,83.155,1.72139287]
[1771773786564,0.3,83.198,83.163,1.72139287]
[1771773786782,1.61995089,83.203,83.163,1.72139287]
[1771773787971,1.61995089,83.199,83.163,1.72139287]
[1771773788169,1.61995089,83.199,83.164,54.1]
[1771773788372,1.69977698,83.197,83.166,13.75367012]
[1771773788870,1.69977698,83.197,83.167,1.72952564]
[1771773790170,13.71861594,83.203,83.167,1.72952564]
[1771773790370,1.69977698,83.212,83.172,2.01384878]
[1771773791084,1.69977698,83.212,83.174,1.72952564]
[1771773791282,1.69977698,83.209,83.175,54.1]
[1771773791901,1.69977698,83.209,83.175,55.82952564]
[1771773792789,1.69977698,83.207,83.177,1.72952564]
[1771773793982,1.69977698,83.205,83.179,1.72952564]
[1771773794688,1.72147578,83.199,83.175,54.1]
[1771773796185,1.72147578,83.197,83.175,54.1]
[1771773797987,1.72147578,83.194,83.175,54.1]
[1771773799492,1.72147578,83.216,83.177,1.61064304]
[1771773799689,1.72147578,83.215,83.177,1.61064304]
[1771773800189,1.72147578,83.209,83.175,66.12276529]
[1771773800391,1.72147578,83.199,83.175,50.55420436]
[1771773801676,1.72147578,83.197,83.175,50.55420436]
[1771773802592,1.72147578,83.197,83.176,1.61064304]
[1771773803592,1.72147578,83.197,83.175,50.55420436]
[1771773804580,12.01980864,83.196,83.176,1.61064304]
[1771773805489,1.72147578,83.208,83.177,1.61064304]
[1771773807084,1.72147578,83.208,83.179,1.61064304]
[1771773807503,1.72147578,83.206,83.179,1.61064304]
[1771773807799,1.72147578,83.206,83.18,54.1]
[1771773807989,1.72147578,83.206,83.181,1.61064304]
[1771773808495,1.72147578,83.206,83.18,53.8]
[1771773809500,12.0185085,83.205,83.18,53.8]
[1771773809687,1.72147578,83.204,83.18,53.8]
[1771773811998,1.72147578,83.202,83.18,53.8]
[1771773812589,3.110297,83.2,83.18,53.8]
[1771773812787,1.72147578,83.199,83.18,53.8]
[1771773813385,1.72147578,83.199,83.172,54.1]
[1771773813582,3.110297,83.19,83.172,54.1]
[1771773813796,1.72147578,83.189,83.172,54.1]
[1771773814296,1.72147578,83.187,83.172,54.1]
[1771773814901,12.01894185,83.202,83.173,1.61064304]
[1771773815095,1.72147578,83.189,83.155,1.61064304]
[1771773815494,42.06629648,83.202,83.155,1.61064304]